fUSD/lending_fUSD_20260409
["ID","MTS","AMOUNT","RATE_DAILY","PERIOD"]
[420149191,1775725877339,-460.104724,0.00013865,2]
[420149192,1775725877349,-1293.90316,0.00013865,2]
[420149193,1775725877359,-9056.299633,0.00013865,2]
[420149194,1775725877369,-382.637335,0.00013865,2]
[420149195,1775725877378,-151.0,0.00013865,2]
[420149196,1775725877388,-238.792721,0.00013865,2]
[420149197,1775725877398,-460.104721,0.00013865,2]
[420149198,1775725877408,-1293.903157,0.00013865,2]
[420149199,1775725877418,-9056.299633,0.00013865,2]
[420149200,1775725877428,-10015.662551,0.00013865,2]
[420149201,1775725877438,-382.637335,0.00013865,2]
[420149202,1775725877448,-238.792721,0.00013865,2]
[420149203,1775725877457,-9056.29964079,0.00013865,2]
[420149204,1775725877467,-234.247138,0.00013865,2]
[420149205,1775725877476,-10015.662545,0.00013865,2]
[420149206,1775725877486,-382.637333,0.00013865,2]
[420149207,1775725877496,-1232.524169,0.00013865,2]
[420149208,1775725877506,-238.792729,0.00013865,2]
[420149209,1775725877516,-151.0,0.00013865,2]
[420149210,1775725877526,-234.247138,0.00013865,2]
[420149211,1775725877536,-1880.018353,0.00013865,2]
[420149212,1775725877546,-1232.524169,0.00013865,2]
[420149213,1775725877556,-169.369347,0.00013865,2]
[420149214,1775725877566,-1681.414266,0.00013865,2]
[420149215,1775725877576,-234.247138,0.00013865,2]
[420149216,1775725877586,-1880.018353,0.00013865,2]
[420149217,1775725877596,-1232.524169,0.00013865,2]
[420149218,1775725877606,-1681.41425893,0.00013865,2]
[420149219,1775725877616,-234.247147,0.00013865,2]
[420149220,1775725877626,-1880.018353,0.00013865,2]
[420149221,1775725877635,-151.0,0.00013865,2]
[420149222,1775725877644,-1232.524175,0.00013865,2]
[420149223,1775725877655,-1880.018358,0.00013865,2]
[420149224,1775725877664,-151.0,0.00013865,2]
[420149225,1775725877675,-151.0,0.00013865,2]
[420149226,1775725877685,-555.069348,0.00013865,2]
[420149227,1775725877694,-641.362299,0.00013865,2]
[420149228,1775725877704,-555.069348,0.00013865,2]
[420149229,1775725877714,-641.362299,0.00013865,2]
[420149230,1775725877724,-555.069348,0.00013865,2]
[420149231,1775725877734,-641.362299,0.00013865,2]
[420149232,1775725877743,-555.069357,0.00013865,2]
[420149233,1775725877753,-641.362298,0.00013865,2]
[420149234,1775725877762,-228.366184,0.00013865,2]
[420149235,1775725877772,-228.366184,0.00013865,2]
[420149236,1775725877783,-151.0,0.00013865,2]
[420149237,1775725877793,-228.759977,0.00013865,2]
[420149238,1775725877803,-228.366184,0.00013865,2]
[420149239,1775725877813,-228.759977,0.00013865,2]
[420149240,1775725877823,-228.366194,0.00013865,2]
[420149241,1775725877833,-228.759977,0.00013865,2]
[420149242,1775725877843,-329.18171,0.00013865,2]
[420149243,1775725877853,-228.759978,0.00013865,2]
[420149244,1775725877863,-329.18171,0.00013865,2]
[420149245,1775725877873,-329.18171,0.00013865,2]
[420149246,1775725877883,-442.41648,0.00013865,2]
[420149247,1775725877893,-329.18171,0.00013865,2]
[420149248,1775725877903,-442.41648,0.00013865,2]
[420149249,1775725877913,-442.41648,0.00013865,2]
[420149250,1775725877923,-442.41649,0.00013865,2]
[420149251,1775725877933,-3585.88883305,0.00013865,2]
[420149252,1775725879896,-151.0,0.00013699,2]
[420149253,1775725879905,-151.0,0.00013699,2]
[420149254,1775725879915,-151.0,0.00013699,2]
[420149255,1775725879924,-151.0,0.00013699,2]
[420149256,1775725879934,-151.0,0.00013699,2]
[420149257,1775725879943,-3936.11116695,0.00013865,2]
[420149258,1775725879952,-1905.0,0.00013865,2]
[420149259,1775725879961,-1241.0,0.00013865,2]
[420149260,1775725879970,-3315.0,0.00013865,2]
[420149261,1775725879980,-794.0,0.00013865,2]
[420149262,1775725879989,-1466.0,0.00013865,2]
[420149263,1775725879999,-713.540148,0.00013865,2]
[420149264,1775725880030,-165.676086,0.00013699,2]
[420149265,1775725880040,-252.459852,0.00013865,2]
[420149266,1775725880049,-229.0,0.00013865,2]
[420149267,1775725880059,-1715.0,0.00013865,2]
[420149268,1775725880069,-7643.0,0.00013865,2]
[420149269,1775725880078,-166.66,0.0001387,2]
[420149270,1775725880088,-200.0,0.00013873,2]
[420149271,1775725880096,-168.0,0.00013896,2]
[420149272,1775725880106,-3917.01850607,0.000139,5]
[420149273,1775725880130,-3256.44860761,0.000139,5]
[420149274,1775725882706,-160.0,0.00011709,2]
[420149275,1775725882716,-537.410058,0.00011709,2]
[420149276,1775725882726,-914.820116,0.00011709,2]
[420149277,1775725882736,-732.831897,0.00012294,2]
[420149278,1775725882747,-3826.53288632,0.000139,5]
[420149279,1775725882758,-168.0,0.0001392,2]
[420149280,1775725882768,-150.0,0.00013973,2]
[420149281,1775725882778,-56.73562555,0.00013973,2]
[420149283,1775726285507,170.75,8.591e-05,2]
[420149289,1775726830139,-287.0,9.526e-05,2]
[420149290,1775726830161,-853.68673055,9.526e-05,2]
[420149291,1775726830182,-250.0,9.526e-05,2]
[420149292,1775726830205,-313.41770673,9.527e-05,2]
[420149293,1775726830226,-300.0,9.527e-05,2]
[420149294,1775726830247,-243.0,9.527e-05,2]
[420149295,1775726830269,-1200.0,9.527e-05,2]
[420149296,1775726830290,-300.0,9.527e-05,2]
[420149297,1775726830313,-10018.7955,9.528e-05,2]
[420149298,1775726830335,-165.58928487,9.591e-05,4]
[420149299,1775726830356,-150.0,9.999e-05,2]
[420149300,1775726830378,-184.77251491,0.0001,2]
[420149301,1775726830399,-262.32,0.0001,2]
[420149302,1775726830421,-150.0,0.0001,2]
[420149303,1775726830443,-500.0,0.0001,2]
[420149304,1775726830464,-200.0,0.0001,2]
[420149305,1775726830485,-500.0,0.0001,2]
[420149306,1775726830508,-500.0,0.0001,2]
[420149307,1775726830529,-500.0,0.0001,2]
[420149308,1775726830550,-151.0,0.0001,2]
[420149309,1775726830572,-500.0,0.0001,2]
[420149310,1775726830593,-151.0,0.0001,2]
[420149311,1775726830614,-500.0,0.0001,2]
[420149312,1775726830635,-151.0,0.0001,2]
[420149313,1775726830658,-500.0,0.0001,2]
[420149314,1775726830680,-500.0,0.0001,2]
[420149315,1775726830701,-151.0,0.0001,2]
[420149316,1775726830722,-594.61806827,0.0001,2]
[420149317,1775726830743,-151.0,0.0001,2]
[420149318,1775726830763,-151.0,0.0001,2]
[420149319,1775726830785,-151.0,0.0001,2]
[420149320,1775726830805,-151.0,0.0001,2]
[420149321,1775726830825,-151.0,0.0001,2]
[420149322,1775726830847,-151.0,0.0001,2]
[420149323,1775726830868,-151.0,0.0001,2]
[420149324,1775726830890,-151.0,0.0001,2]
[420149325,1775726830914,-151.0,0.0001,2]
[420149326,1775726830935,-151.0,0.0001,2]
[420149327,1775726830955,-1156.41848616,0.0001,2]
[420149328,1775726830977,-151.0,0.0001,2]
[420149329,1775726830998,-151.0,0.0001,2]
[420149330,1775726831019,-151.0,0.0001,2]
[420149331,1775726831040,-151.0,0.0001,2]
[420149332,1775726831062,-151.0,0.0001,2]
[420149333,1775726831461,-151.0,0.0001,2]
[420149334,1775726831488,-151.0,0.0001,2]
[420149335,1775726831509,-151.0,0.0001,2]
[420149336,1775726831530,-1051.35,0.0001,2]
[420149337,1775726831550,-241.33572776,0.0001,2]
[420149338,1775726831571,-309.73188561,0.0001,2]
[420149339,1775726831593,-151.0,0.0001,2]
[420149340,1775726831614,-151.0,0.0001,2]
[420149341,1775726831635,-151.0,0.0001,2]
[420149342,1775726831656,-6801.71,0.00010139,2]
[420149343,1775726831676,-4753.0,0.000102,3]
[420149344,1775726831699,-200.0,0.00010203,2]
[420149345,1775726831719,-500.0,0.00010274,2]
[420149346,1775726831740,-1051.35,0.00010274,2]
[420149347,1775726831760,-150.0,0.00010301,2]
[420149348,1775726831780,-150.0,0.00010301,2]
[420149349,1775726831800,-223.44111523,0.00010301,2]
[420149350,1775726831822,-5533.0,0.000104,5]
[420149351,1775726831843,-3828.07721449,0.00010469,2]
[420149353,1775726966050,-200.85971444,9.527e-05,2]
[420149354,1775726966072,-250.0,9.763e-05,2]
[420149355,1775726966094,-300.0,9.999e-05,2]
[420149356,1775726966116,-151.0,0.0001,2]
[420149357,1775726966136,-151.0,0.0001,2]
[420149358,1775726966158,-151.0,0.0001,2]
[420149359,1775726966178,-151.0,0.0001,2]
[420149360,1775726966198,-151.0,0.0001,2]
[420149361,1775726966218,-151.0,0.0001,2]
[420149362,1775726966239,-151.0,0.0001,2]
[420149363,1775726966260,-500.0,0.0001,2]
[420149364,1775726966282,-151.0,0.0001,2]
[420149365,1775726966303,-500.0,0.0001,2]
[420149366,1775726966324,-151.0,0.0001,2]
[420149367,1775726966344,-500.0,0.0001,2]
[420149368,1775726966364,-500.0,0.0001,2]
[420149369,1775726966383,-500.0,0.0001,2]
[420149370,1775726966402,-200.0,0.0001,2]
[420149371,1775726966422,-500.0,0.0001,2]
[420149372,1775726966443,-500.0,0.0001,2]
[420149373,1775726966463,-500.0,0.0001,2]
[420149374,1775726966482,-500.0,0.0001,2]
[420149375,1775726966503,-500.0,0.0001,2]
[420149376,1775726966523,-500.0,0.0001,2]
[420149377,1775726966542,-500.0,0.0001,2]
[420149378,1775726966563,-1090.65785008,0.0001,2]
[420149385,1775727031602,-300.0,9.899e-05,2]
[420149386,1775727031612,-1200.0,9.899e-05,2]
[420149387,1775727031621,-150.0,9.899e-05,2]
[420149388,1775727031632,-1681.55408255,9.9e-05,2]
[420149389,1775727033306,-2600.0,9.9e-05,2]
[420149390,1775727033318,-1667.75473326,9.9e-05,2]
[420149391,1775727033330,-65496.88693361,9.9e-05,2]
[420149392,1775727033342,-491.5847794,9.9e-05,2]
[420149393,1775727033451,-882.31924771,9.9e-05,2]
[420149394,1775727033463,-71234.24792347,9.9e-05,2]
[420149395,1775727033474,-65.76063608,0.0001,2]
[420149396,1775727033484,-151.0,0.0001,3]
[420149397,1775727033494,-104.30384177,0.00010469,2]
[420149398,1775727033504,-193.0,0.00010479,2]
[420149399,1775727033514,-5000.0,0.00010479,2]
[420149400,1775727033524,-250.0,0.0001048,2]
[420149401,1775727033534,-250.0,0.0001048,2]
[420149402,1775727033543,-420.0,0.0001048,2]
[420149403,1775727033553,-5895.37,0.00010484,2]
[420149404,1775727033563,-481.98,0.00010545,2]
[420149405,1775727033573,-1051.35,0.00010548,2]
[420149406,1775727033583,-200.0,0.00010548,2]
[420149407,1775727033593,-1199.20597015,0.00010548,2]
[420149409,1775727033602,-1895.83,0.0001056,2]
[420149411,1775727033612,-4529.83,0.00010561,2]
[420149413,1775727033622,-15653.75,0.00010614,2]
[420149414,1775727033632,-249.0,0.0001077,2]
[420149415,1775727033641,-251.0,0.00010796,2]
[420149416,1775727033651,-3926.93,0.00010814,2]
[420149417,1775727033661,-1051.35,0.00010822,2]
[420149418,1775727033671,-1041.39170971,0.00010878,2]
[420149419,1775727033681,-1706.0,0.00010884,2]
[420149420,1775727033690,-209.00930196,0.00010884,2]
[420149421,1775727033700,-250.0,0.00010889,2]
[420149422,1775727033710,-420.0,0.00010889,2]
[420149423,1775727033720,-1680.0,0.00010889,2]
[420149424,1775727033730,-255.0,0.00010889,2]
[420149426,1775727033740,-997.0,0.00010905,2]
[420149428,1775727033750,-150.0,0.0001093,2]
[420149429,1775727033760,-150.0,0.0001093,2]
[420149430,1775727033769,-150.0,0.0001093,2]
[420149431,1775727033779,-150.0,0.0001093,2]
[420149432,1775727033789,-150.0,0.0001093,2]
[420149433,1775727033799,-185.45331972,0.0001093,2]
[420149434,1775727033809,-500.0,0.00010959,2]
[420149435,1775727033819,-2000.0,0.00011037,2]
[420149436,1775727033830,-1785.0,0.00011041,2]
[420149437,1775727033839,-1228.0,0.00011063,2]
[420149438,1775727033849,-739.0,0.00011085,2]
[420149439,1775727033859,-1051.35,0.00011096,2]
[420149440,1775727033869,-804.14044127,0.00011096,2]
[420149441,1775727033879,-150.0,0.000112,2]
[420149442,1775727033889,-351.31,0.00011296,2]
[420149443,1775727033898,-500.0,0.00011364,2]
[420149444,1775727033908,-500.0,0.00011364,2]
[420149445,1775727033918,-278.34732261,0.00011364,2]
[420149446,1775727033928,-500.0,0.00011364,2]
[420149447,1775727033938,-500.0,0.00011364,2]
[420149448,1775727033947,-500.0,0.00011364,2]
[420149449,1775727033957,-500.0,0.00011364,2]
[420149450,1775727033966,-500.0,0.00011364,2]
[420149451,1775727033975,-500.0,0.00011364,2]
[420149452,1775727033985,-601.3376128,0.00011365,2]
[420149453,1775727033995,-151.00000002,0.00011365,2]
[420149454,1775727034004,-1191.11104075,0.00011365,2]
[420149455,1775727034014,-7965.41053268,0.00011365,2]
[420149456,1775727034024,-200.0,0.00011365,2]
[420149457,1775727034033,-500.0,0.00011365,2]
[420149458,1775727034043,-578.20924308,0.00011365,2]
[420149459,1775727034053,-743.50770149,0.00011365,2]
[420149460,1775727034063,-151.00000001,0.00011365,2]
[420149461,1775727034072,-151.0,0.00011365,2]
[420149462,1775727034082,-160.0,0.00011365,2]
[420149463,1775727034091,-1568.29959571,0.00011365,2]
[420149464,1775727034101,-174.61919141,0.00011365,2]
[420149465,1775727034111,-500.0,0.00011365,2]
[420149466,1775727034121,-1051.35,0.0001137,2]
[420149467,1775727034133,-608.56305121,0.0001142,2]
[420149468,1775727035506,-7651.56767118,0.0001142,2]
[420149469,1775727035516,-500.0,0.0001142,2]
[420149470,1775727035526,-151.0,0.0001142,2]
[420149471,1775727035535,-8565.75555911,0.00011475,2]
[420149472,1775727035545,-500.0,0.00011475,2]
[420149473,1775727035554,-151.0,0.00011475,2]
[420149474,1775727035564,-7035.59,0.00011507,2]
[420149475,1775727035574,-3000.0,0.00011507,2]
[420149476,1775727035583,-180.0,0.00011528,2]
[420149477,1775727035593,-500.0,0.0001153,2]
[420149478,1775727035602,-2991.79225918,0.0001153,2]
[420149479,1775727035615,-5890.89625562,0.0001153,2]
[420149480,1775727035624,-151.0,0.0001153,2]
[420149481,1775727035634,-500.0,0.00011585,2]
[420149482,1775727035643,-9211.34798985,0.00011585,2]
[420149483,1775727035653,-151.0,0.00011585,2]
[420149484,1775727035663,-475.3894655,0.00011639,2]
[420149485,1775727035672,-500.0,0.0001164,2]
[420149486,1775727035682,-2653.85601099,0.0001164,2]
[420149487,1775727035694,-2174.50212326,0.0001164,2]
[420149492,1775727037771,-372.73608226,0.00010703,2]
[420149493,1775727037782,-829.706637,0.00010703,2]
[420149494,1775727037897,-78.42379441,0.00010703,2]
[420149495,1775727037907,-3381.57620559,0.0001164,2]
[420149496,1775727037918,-767.54052114,0.0001164,2]
[420149497,1775727037929,-574.69300449,0.0001164,2]
[420149498,1775727037938,-151.0,0.0001164,2]
[420149499,1775727037948,-1051.35,0.00011644,2]
[420149500,1775727037957,-1500.0,0.00011688,2]
[420149501,1775727037966,-500.0,0.00011695,2]
[420149502,1775727037975,-9905.5980765,0.00011695,2]
[420149503,1775727037985,-151.0,0.00011695,2]
[420149504,1775727037995,-500.0,0.0001175,2]
[420149505,1775727038005,-10272.10520533,0.0001175,2]
[420149506,1775727038014,-151.0,0.0001175,2]
[420149507,1775727038024,-166.66,0.00011751,2]
[420149508,1775727038033,-1600.0,0.00011781,2]
[420149509,1775727038042,-500.0,0.00011805,2]
[420149510,1775727038052,-5604.64841398,0.00011805,2]
[420149511,1775727038060,-151.0,0.00011805,2]
[420149512,1775727038070,-500.0,0.0001186,2]
[420149513,1775727038079,-200.0,0.00011913,2]
[420149514,1775727038089,-1235.18214925,0.00011913,2]
[420149515,1775727038098,-771.01748645,0.00011913,2]
[420149516,1775727038107,-181.08010149,0.00011913,2]
[420149517,1775727038117,-500.0,0.00011915,2]
[420149518,1775727038127,-1051.39132328,0.00011918,2]
[420149519,1775727038137,-160.0,0.00011966,2]
[420149520,1775727038146,-500.0,0.0001197,2]
[420149521,1775727038156,-587.0,0.00011978,2]
[420149522,1775727038165,-2351.0,0.00011978,2]
[420149523,1775727038175,-388.64651981,0.00011978,2]
[420149572,1775727039802,-44.35348019,0.00011978,2]
[420149573,1775727039812,-500.0,0.00012025,2]
[420149574,1775727039821,-97.01011981,0.0001208,2]
[420149575,1775727040309,-0.06728785,0.0001208,2]
[420149576,1775727040345,-402.92259234,0.0001208,2]
[420149577,1775727040355,-500.0,0.00012135,2]
[420149578,1775727040365,-166.66,0.00012139,2]
[420149579,1775727040375,-500.0,0.0001219,2]
[420149580,1775727040386,-500.0,0.00012247,2]
[420149581,1775727040395,-2000.0,0.00012417,2]
[420149582,1775727040405,-200.0,0.00012461,2]
[420149583,1775727040415,-1280.88388878,0.00012461,2]
[420149584,1775727040425,-890.44742925,0.00012461,2]
[420149585,1775727040435,-187.78006525,0.00012461,2]
[420149586,1775727040444,-173.0977,0.000125,2]
[420149587,1775727040454,-166.66,0.00012527,2]
[420149588,1775727040463,-250.0,0.00012588,2]
[420149589,1775727040472,-1600.0,0.00012796,2]
[420149590,1775727040482,-1264.0,0.00012801,2]
[420149591,1775727040492,-150.0,0.00012801,2]
[420149592,1775727040502,-1218.0,0.00012801,2]
[420149593,1775727040512,-926.0,0.00012801,2]
[420149594,1775727040522,-2471.0,0.00012801,2]
[420149595,1775727040532,-622.0,0.00012801,2]
[420149596,1775727040542,-274.11,0.00012877,2]
[420149597,1775727040551,-3000.0,0.00012877,2]
[420149598,1775727040561,-9999.99,0.00012893,2]
[420149599,1775727040571,-150.99,0.00012893,2]
[420149600,1775727040580,-150.99,0.00012893,2]
[420149601,1775727040590,-166.66,0.00012915,2]
[420149602,1775727040599,-209.348769,0.00012984,2]
[420149603,1775727040608,-250.0,0.00013,2]
[420149604,1775727040618,-151.0,0.00013,3]
[420149605,1775727040627,-200.0,0.00013009,2]
[420149606,1775727040637,-1328.27659266,0.00013009,2]
[420149607,1775727040647,-194.72792766,0.00013009,2]
[420149608,1775727040656,-233.540189,0.00013052,2]
[420149609,1775727040666,-255.32505,0.00013052,2]
[420149610,1775727040676,-160.0,0.00013052,2]
[420149611,1775727040686,-439.498737,0.00013052,2]
[420149612,1775727040696,-718.997475,0.00013052,2]
[420149613,1775727040705,-181.170572,0.00013052,2]
[420149614,1775727040714,-502.0,0.000131,2]
[420149615,1775727040724,-1600.0,0.00013151,2]
[420149616,1775727040733,-197.15242816,0.00013163,2]
[420149617,1775727040743,-823.0,0.00013176,2]
[420149618,1775727040753,-3292.0,0.00013176,2]
[420149619,1775727040762,-736.0,0.00013176,2]
[420149620,1775727040772,-3134.05674469,0.0001324,2]
[420149621,1775727040783,-617.0,0.00013249,5]
[420149622,1775727040793,-3808.509,0.00013249,2]
[420149623,1775727040802,-198.072,0.00013249,2]
[420149624,1775727040813,-177.67190467,0.0001325,2]
[420149625,1775727040823,-397.31566274,0.0001325,2]
[420149626,1775727040833,-494.70428512,0.0001325,2]
[420149627,1775727040843,-576.68725924,0.0001325,2]
[420149628,1775727040852,-1000.0,0.000133,2]
[420149629,1775727040862,-313.0,0.000133,2]
[420149630,1775727040873,-166.66,0.00013303,2]
[420149631,1775727040883,-356.733781,0.00013327,2]
[420149632,1775727040893,-266.40746223,0.0001334,2]
[420149633,1775727040902,-366.85,0.00013372,2]
[420149634,1775727040921,-305.97,0.00013372,2]
[420149635,1775727040943,-323.72775275,0.00013372,2]
[420149636,1775727040955,-1268.72883436,0.00013378,2]
[420149637,1775727040964,-445.72062237,0.00013482,2]
[420149638,1775727040974,-700.0,0.00013496,2]
[420149639,1775727040983,-366.85,0.00013538,2]
[420149640,1775727040993,-200.0,0.00013557,2]
[420149641,1775727041003,-1377.42282659,0.00013557,2]
[420149642,1775727041012,-201.93286099,0.00013557,2]
[420149643,1775727041021,-362.78973657,0.0001357,2]
[420149644,1775727041031,-1293.78556542,0.0001357,2]
[420149645,1775727041041,-1225.98149152,0.0001357,2]
[420149646,1775727041051,-200.0,0.00013591,2]
[420149647,1775727041061,-33044.9118,0.00013599,2]
[420149648,1775727041071,-1000.0,0.00013599,2]
[420149649,1775727041080,-9126.7707,0.00013599,2]
[420149650,1775727041089,-2776.99732238,0.00013599,2]
[420149651,1775727041126,-20502.85637762,0.00013599,2]
[420149652,1775727041136,-3134.05674469,0.0001362,2]
[420149653,1775727041146,-351.31,0.0001364,2]
[420149654,1775727041156,-5000.0,0.00013675,2]
[420149655,1775727041166,-674.46810786,0.00013677,2]
[420149656,1775727041175,-180.39456153,0.00013677,2]
[420149657,1775727041185,-1636.24,0.00013688,2]
[420149658,1775727041195,-166.66,0.0001369,2]
[420149659,1775727041206,-2700.96770269,0.00013694,2]
[420149660,1775727041215,-502.06502755,0.00013698,2]
[420149661,1775727041543,-500.0,0.00013699,2]
[420149662,1775727041559,-500.0,0.00013699,2]
[420149663,1775727041569,-500.0,0.00013699,2]
[420149664,1775727041579,-500.0,0.00013699,2]
[420149665,1775727041589,-150.0,0.00013699,2]
[420149666,1775727041598,-150.0,0.00013699,2]
[420149667,1775727041608,-228.66639528,0.00013699,2]
[420149668,1775727041618,-150.0,0.00013699,2]
[420149669,1775727041627,-166.66,0.00013699,2]
[420149670,1775727041636,-161.99385538,0.00013699,2]
[420149671,1775727041646,-3036.0532787,0.00013699,2]
[420149672,1775727041656,-150.7697687,0.00013699,2]
[420149673,1775727041665,-165.0,0.00013699,2]
[420149674,1775727041675,-221.0,0.00013699,2]
[420149675,1775727041684,-165.0,0.00013699,2]
[420149676,1775727041693,-986.05,0.00013699,2]
[420149677,1775727041702,-786.15,0.00013699,2]
[420149678,1775727041712,-2109.07,0.000137,2]
[420149679,1775727041721,-2109.07,0.000137,2]
[420149680,1775727041731,-2109.07,0.000137,2]
[420149681,1775727041740,-599.31646,0.00013705,2]
[420149682,1775727041750,-155.25198367,0.00013721,2]
[420149683,1775727041762,-168.0,0.00013722,2]
[420149684,1775727041772,-500.0,0.00013726,2]
[420149685,1775727041781,-228.09,0.00013728,2]
[420149686,1775727041790,-500.0,0.00013755,2]
[420149687,1775727041800,-2109.07,0.00013765,2]
[420149688,1775727041809,-2109.07,0.00013765,2]
[420149689,1775727041818,-167.54354,0.00013772,2]
[420149690,1775727041828,-159.121307,0.00013772,2]
[420149691,1775727041837,-501.60436504,0.00013773,2]
[420149692,1775727041847,-264.99335575,0.00013773,2]
[420149693,1775727041856,-500.0,0.00013773,2]
[420149694,1775727041867,-500.0,0.00013773,2]
[420149695,1775727041877,-500.0,0.00013773,2]
[420149696,1775727041886,-500.0,0.00013773,2]
[420149697,1775727041895,-500.0,0.00013773,2]
[420149698,1775727041904,-500.0,0.00013773,2]
[420149699,1775727041913,-500.0,0.00013773,2]
[420149700,1775727041922,-500.0,0.00013773,2]
[420149701,1775727041932,-500.51505804,0.00013773,2]
[420149702,1775727041941,-389.17525049,0.00013773,2]
[420149703,1775727041951,-500.0,0.00013774,2]
[420149704,1775727041960,-500.0,0.00013774,2]
[420149705,1775727041970,-2008.4761075,0.00013775,2]
[420149706,1775727041980,-201293.403357,0.00013775,2]
[420149707,1775727041989,-500.0,0.00013779,2]
[420149708,1775727041998,-500.0,0.00013779,2]
[420149709,1775727042008,-502.13817389,0.00013779,2]
[420149710,1775727042017,-570.90064959,0.00013779,2]
[420149711,1775727042027,-535.78050432,0.00013779,2]
[420149712,1775727042037,-500.0,0.00013779,2]
[420149713,1775727042046,-500.0,0.00013779,2]
[420149714,1775727042055,-259.05064319,0.00013779,2]
[420149715,1775727042064,-500.0,0.00013779,2]
[420149716,1775727042074,-500.0,0.00013779,2]
[420149717,1775727042083,-500.0,0.00013779,2]
[420149718,1775727042092,-500.0,0.00013779,2]
[420149719,1775727042102,-500.0,0.00013779,2]
[420149720,1775727042111,-500.0,0.00013779,2]
[420149721,1775727042120,-604.45150078,0.00013779,2]
[420149722,1775727042130,-500.0,0.00013779,2]
[420149723,1775727042140,-2000.0,0.00013796,2]
[420149724,1775727042150,-199.7521,0.000138,2]
[420149725,1775727042160,-2000.0,0.0001383,2]
[420149726,1775727042170,-2000.0,0.0001383,2]
[420149727,1775727042179,-166.66,0.00013836,2]
[420149728,1775727042189,-2000.0,0.0001385,2]
[420149729,1775727042199,-769.0,0.00013856,5]
[420149730,1775727042209,-500.0,0.0001386,2]
[420149731,1775727042218,-263.3493797,0.0001389,2]
[420149732,1775727042229,-1100.0,0.000139,5]
[420149733,1775727042239,-150.0,0.00013973,2]
[420149734,1775727042248,-150.0,0.00013973,2]
[420149735,1775727042258,-166.66,0.00013973,2]
[420149736,1775727042267,-200.0,0.00013973,2]
[420149737,1775727042276,-986.05,0.00013973,2]
[420149738,1775727042287,-200.0,0.00013973,2]
[420149739,1775727042296,-500.0,0.00013973,2]
[420149740,1775727042306,-2000.0,0.00013973,2]
[420149741,1775727042315,-2000.0,0.00013973,2]
[420149742,1775727042326,-2000.0,0.00013973,2]
[420149743,1775727042336,-1000.0,0.00013973,2]
[420149744,1775727042345,-1000.0,0.00013973,2]
[420149745,1775727042354,-1000.0,0.00013973,2]
[420149746,1775727042363,-1000.0,0.00013973,2]
[420149747,1775727042372,-1000.0,0.00013973,2]
[420149748,1775727042382,-1000.0,0.00013973,2]
[420149749,1775727042392,-1000.0,0.00013973,2]
[420149750,1775727042401,-1000.0,0.00013973,2]
[420149751,1775727042410,-1000.0,0.00013973,2]
[420149752,1775727042421,-398.985,0.00013973,2]
[420149754,1775727042430,-786.15,0.00013973,2]
[420149756,1775727042440,-152.0,0.00013975,8]
[420149758,1775727042451,-168.0,0.0001399,2]
[420149760,1775727042460,-162.151718,0.00013993,2]
[420149761,1775727042469,-151.0,0.00014,5]
[420149763,1775727042479,-500.0,0.00014,2]
[420149764,1775727042488,-3255.5183785,0.00014,2]
[420149765,1775727042498,-1959.00135147,0.00014,2]